{"text_format":"1","workbook":"xlsx","n_sheets":1,"sheets":["Sheet1"],"not_rendered":{"charts":1,"images":0,"macros":1,"external_links":0,"defined_names":1,"comments":0,"pivot_tables":0},"unopened":[],"bounds":{"document_bytes":16777216,"sheet_cells":100000,"rows_first":2000,"rows_last":500,"rows_between":2000,"halvings":0,"cell_chars":16384,"cell_head_chars":4096},"cells_cut":0,"cells_raw":0,"read":"whole","date_system":"1900"}

{"sheet":"Sheet1","index":0,"n_rows":130,"n_cols":15,"rows_kept":130,"cut":false,"hidden":false,"merged":[[55,0,55,1],[112,11,112,12],[14,7,14,8],[4,1,4,14],[10,1,10,4],[11,1,11,4],[12,1,12,4],[14,5,14,6],[10,5,10,11],[82,0,82,1],[88,0,88,1],[94,0,94,1],[100,0,100,1],[14,3,14,4],[76,0,76,1],[5,3,5,4],[0,0,0,11],[16,0,16,1],[22,0,22,1],[33,0,33,1],[44,0,44,1],[3,1,3,14],[6,3,6,4],[7,3,7,4],[8,3,8,4],[9,3,9,4]]}
["Design Dignity Dementia Environment Assessment Tool scoring spreadsheet.©",null,null,null,null,null,null,null,null,null,null,null,null,null,"N/A"]
[]
[]
["Facility"]
["Name of unit"]
["Date of assessment"]
["Time"]
["How many people live in the unit?"]
["How many people are usually in the common area?"]
["What is the maximum number of people in one bedroom?"]
["Name of Rater 1",null,null,null,null,"Name of rater(s) must be provided if Average Scores and Graph are required"]
["Name of Rater 2"]
["Name of Rater 3"]
["Number of raters",{"$f":"COUNTIF(B11:E13,\"*\")","v":0}]
[null,null,null,"Rater 1",null,"Rater 2",null,"Rater 3"]
[null,null,null,"Score","N/A","Score","N/A","Score","N/A",null,"Number of N/As","Average Score","Average % score"]
["1.        Begin each project by developing a vision for a dignified way of life for people living with dementia.",null,null,{"$f":"SUM(D18:D22)","v":0},{"$f":"COUNTA(E18:E22)","v":0},{"$f":"SUM(F18:F22)","v":0},{"$f":"COUNTA(G18:G22)","v":0},{"$f":"SUM(H18:H22)","v":0},{"$f":"COUNTA(I18:I22)","v":0},null,{"$f":"E17+G17+I17","v":0},{"$f":"_xlfn.IFS(B14=3,AVERAGE(D17,F17,H17),B14=2,AVERAGE(D17,F17),B14=1,AVERAGE(D17))","v":{"$error":"#N/A"}},{"$f":"_xlfn.IFS(B14=1,(SUM(D18:D22)+2*K17)/10,B14=2,(SUM(D18:D22)+SUM(F18:F22)+2*K17)/20,B14=3,(SUM(D18:D22)+SUM(F18:F22)+SUM(H18:H22)+2*K17)/30)","v":{"$error":"#N/A"}}]
[null,"1.Adopt a clear care philosophy ",null,null,null,null,null,null,null,null,{"$f":"COUNTA(E18,G18,I18)","v":0},{"$f":"IFERROR(AVERAGE(D18,F18,H18),\"\")","v":""},{"$f":"IFERROR(L18/2,\"\")","v":""}]
[null,"2.Involve the residents and families in developing the lifestyle or care philosophy.",null,null,null,null,null,null,null,null,0,{"$f":"IFERROR(AVERAGE(D19,F19,H19),\"\")","v":""},{"$f":"IFERROR(L19/2,\"\")","v":""}]
[null,"3.Ensure the building supports the chosen lifestyle.",null,null,null,null,null,null,null,null,0,{"$f":"IFERROR(AVERAGE(D20,F20,H20),\"\")","v":""},{"$f":"IFERROR(L20/2,\"\")","v":""}]
[null,"4.Embody the care philosophy in the built environment",null,null,null,null,null,null,null,null,0,{"$f":"IFERROR(AVERAGE(D21,F21,H21),\"\")","v":""},{"$f":"IFERROR(L21/2,\"\")","v":""}]
[null,"5.Provide the resources required.",null,null,null,null,null,null,null,null,0,{"$f":"IFERROR(AVERAGE(D22,F22,H22),\"\")","v":""},{"$f":"IFERROR(L22/2,\"\")","v":""}]
["2.       Where safety measures are agreed to be appropriate, design them to be as unobtrusive as possible.",null,null,{"$f":"SUM(D24:D33)","v":0},{"$f":"COUNTA(E24:E33)","v":0},{"$f":"SUM(F24:F33)","v":0},{"$f":"COUNTA(G24:G33)","v":0},{"$f":"SUM(H24:H33)","v":0},{"$f":"COUNTA(I24:I33)","v":0},null,{"$f":"E23+G23+I23","v":0},{"$f":"_xlfn.IFS(B14=3,AVERAGE(D23,F23,H23),B14=2,AVERAGE(D23,F23),B14=1,AVERAGE(D23))","v":{"$error":"#N/A"}},{"$f":"_xlfn.IFS(B14=1,(SUM(D24:D33)+2*K23)/20,B14=2,(SUM(D24:D33)+SUM(F24:F33)+2*K23)/40,B14=3,(SUM(D24:D33)+SUM(F24:F33)+SUM(H24:H33)+2*K23)/60)","v":{"$error":"#N/A"}}]
[null,"1.Ensure step-free access to all outside areas",null,null,null,null,null,null,null,null,{"$f":"COUNTA(E24,G24,I24)","v":0},{"$f":"IFERROR(AVERAGE(D24,F24,H24),\"\")","v":""},{"$f":"IFERROR(L24/2,\"\")","v":""}]
[null,"2.Ensure outside floor surfaces are safe when wet",null,null,null,null,null,null,null,null,0,"",""]
[null,"3.Provide clear pathways in the outside area",null,null,null,null,null,null,null,null,0,"",""]
[null,"4.Ensure outside paths are wide enough for people to pass one another.",null,null,null,null,null,null,null,null,0,"",""]
[null,"5.Provide unobtrusive options for controlling access to the kitchen",null,null,null,null,null,null,null,null,0,"",""]
[null,"6.Provide safe, unobtrusive storage for kitchen appliances.",null,null,null,null,null,null,null,null,0,"",""]
[null,"7.Ensure inside floor surfaces are safe when wet",null,null,null,null,null,null,null,null,0,"",{"$f":"IFERROR(L30/2,\"\")","v":""}]
[null,"8.Ensure safe and easy transfer of non-ambulant residents",null,null,null,null,null,null,null,null,0,{"$f":"IFERROR(AVERAGE(D31,F31,H31),\"\")","v":""},""]
[null,"9.Provide unobtrusive control of exits from Garden/Outside Area.",null,null,null,null,null,null,null,null,0,"",""]
[null,"10.Provide unobtrusive control of exit from front door. ",null,null,null,null,null,null,null,null,0,"",""]
["3.        Design the environment to reflect a human scale.",null,null,{"$f":"SUM(D35:D44)","v":0},{"$f":"COUNTA(E35:E44)","v":0},{"$f":"SUM(F35:F44)","v":0},{"$f":"COUNTA(G35:G44)","v":0},{"$f":"SUM(H35:H44)","v":0},{"$f":"COUNTA(I35:I44)","v":0},null,{"$f":"E34+G34+I34","v":0},{"$f":"_xlfn.IFS(B14=3,AVERAGE(D34,F34,H34),B14=2,AVERAGE(D34,F34),B14=1,AVERAGE(D34))","v":{"$error":"#N/A"}},{"$f":"_xlfn.IFS(B14=1,(SUM(D35:D44)+2*K34)/20,B14=2,(SUM(D35:D44)+SUM(F35:F44)+2*K34)/40,B14=3,(SUM(D35:D44)+SUM(F35:F44)+SUM(H35:H44)+2*K34)/60)","v":{"$error":"#N/A"}}]
[null,"1.Accommodate a comfortable number of residents",null,null,null,null,null,null,null,null,{"$f":"COUNTA(E35,G35,I35)","v":0},{"$f":"IFERROR(AVERAGE(D35,F35,H35),\"\")","v":""},{"$f":"IFERROR(L35/2,\"\")","v":""}]
[null,"2.Ensure that the scale of common areas is comfortable and inviting for residents.",null,null,null,null,null,null,null,null,0,{"$f":"IFERROR(AVERAGE(D36,F36,H36),\"\")","v":""},{"$f":"IFERROR(L36/2,\"\")","v":""}]
[null,"3.Ensure that the number of people in the common areas is comfortable for residents.",null,null,null,null,null,null,null,null,0,"",""]
[null,"4.Optimize the size of doors to create an environment that feels right for people living with dementia.",null,null,null,null,null,null,null,null,0,"",""]
[null,"5.Optimize the size of fittings, e.g door handles, to create an environment that feels right for people living with dementia.",null,null,null,null,null,null,null,null,0,"",""]
[null,"6.Optimize the size of rooms to create an environment that feels right for people living with dementia.",null,null,null,null,null,null,null,null,0,"",""]
[null,"7.Optimize the size of corridors to create an environment that feels right for people living with dementia.",null,null,null,null,null,null,null,null,0,"",""]
[null,"8.Optimise the number of common spaces to give an appropriate level of choice.",null,null,null,null,null,null,null,null,0,"",""]
[null,"9.Ensure that the scale of the building, as seen from the outside, is welcoming and not intimidating",null,null,null,null,null,null,null,null,0,"",""]
[null,"10.Create an outdoor area with a human-scale design that promotes a sense of well-being and competence for residents.",null,null,null,null,null,null,null,null,0,"",""]
["4.       Plan the environment to make it easy for people to see and move where they want to go.",null,null,{"$f":"SUM(D46:D55)","v":0},{"$f":"COUNTA(E46:E55)","v":0},{"$f":"SUM(F46:F55)","v":0},{"$f":"COUNTA(G46:G55)","v":0},{"$f":"SUM(H46:H55)","v":0},{"$f":"COUNTA(I46:I55)","v":0},null,{"$f":"E45+G45+I45","v":0},{"$f":"_xlfn.IFS(B14=3,AVERAGE(D45,F45,H45),B14=2,AVERAGE(D45,F45),B14=1,AVERAGE(D45))","v":{"$error":"#N/A"}},{"$f":"_xlfn.IFS(B14=1,(SUM(D46:D55)+2*K45)/20,B14=2,(SUM(D46:D55)+SUM(F46:F55)+2*K45)/40,B14=3,(SUM(D46:D55)+SUM(F46:F55)+SUM(H46:H55)+2*K45)/60)","v":{"$error":"#N/A"}}]
[null,"1.Promote visibility of the lounge room from bedrooms. ",null,null,null,null,null,null,null,null,{"$f":"COUNTA(E46,G46,I46)","v":0},{"$f":"IFERROR(AVERAGE(D46,F46,H46),\"\")","v":""},{"$f":"IFERROR(L46/2,\"\")","v":""}]
[null,"2.Promote visibility of bedroom door from lounge room.",null,null,null,null,null,null,null,null,0,{"$f":"IFERROR(AVERAGE(D47,F47,H47),\"\")","v":""},{"$f":"IFERROR(L47/2,\"\")","v":""}]
[null,"3.Provide visibility of the dining room from bedrooms.",null,null,null,null,null,null,null,null,0,"",""]
[null,"4.Provide visual access to garden/outside area from lounge or dining room.",null,null,null,null,null,null,null,null,0,"",""]
[null,"5.Promote visibility of the dining room from the lounge room.",null,null,null,null,null,null,null,null,0,"",""]
[null,"6.Provide visibility of a toilet from the lounge room.",null,null,null,null,null,null,null,null,0,"",""]
[null,"7.Provide visibility of a toilet from the dining room.",null,null,null,null,null,null,null,null,0,"",""]
[null,"8.Promote visibility of the lounge room from staff areas.",null,null,null,null,null,null,null,null,0,"",""]
[null,"9.Provide visibility of the dining room from staff areas.",null,null,null,null,null,null,null,null,0,"",""]
[null,"10.Provide visual access to garden/outside area from staff areas.",null,null,null,null,null,null,null,null,0,"",""]
["5.        Optimise stimulation.",null,null,{"$f":"SUM(D57:D76)","v":0},{"$f":"COUNTA(E57:E76)","v":0},{"$f":"SUM(F57:F76)","v":0},{"$f":"COUNTA(G57:G76)","v":0},{"$f":"SUM(H57:H76)","v":0},{"$f":"COUNTA(I57:I76)","v":0},null,{"$f":"E56+G56+I56","v":0},{"$f":"_xlfn.IFS(B14=3,AVERAGE(D56,F56,H56),B14=2,AVERAGE(D56,F56),B14=1,AVERAGE(D56))","v":{"$error":"#N/A"}},{"$f":"_xlfn.IFS(B14=1,(SUM(D57:D76)+2*K56)/40,B14=2,(SUM(D57:D76)+SUM(F57:F76)+2*K56)/80,B14=3,(SUM(D57:D76)+SUM(F57:F76)+SUM(H57:H76)+2*K56)/120)","v":{"$error":"#N/A"}}]
[null,"1.Conceal potentially dangerous areas",null,null,null,null,null,null,null,null,{"$f":"COUNTA(E57,G57,I57)","v":0},{"$f":"IFERROR(AVERAGE(D57,F57,H57),\"\")","v":""},{"$f":"IFERROR(L57/2,\"\")","v":""}]
[null,"2.Ensure that deliveries and storage take place separately from the living areas.",null,null,null,null,null,null,null,null,0,{"$f":"IFERROR(AVERAGE(D58,F58,H58),\"\")","v":""},{"$f":"IFERROR(L58/2,\"\")","v":""}]
[null,"3.Avoid excessive noise and alarms",null,null,null,null,null,null,null,null,0,"",""]
[null,"4.Reduce visual clutter",null,null,null,null,null,null,null,null,0,"",""]
[null,"5.Manage glare ",null,null,null,null,null,null,null,null,0,"",""]
[null,"6.Facilitate recognition of dining room from outside the room",null,null,null,null,null,null,null,null,0,"",""]
[null,"7.Facilitate recognition of lounge room from outside the room",null,null,null,null,null,null,null,null,0,"",""]
[null,"8.Differentiate corridors for resident orientation",null,null,null,null,null,null,null,null,0,"",""]
[null,"9.Personalize signs, symbols, or displays for bedrooms",null,null,null,null,null,null,null,null,0,"",""]
[null,"10.Clearly mark shared ensuites/ bathrooms/ toilets",null,null,null,null,null,null,null,null,0,"",""]
[null,"11.Ensure the visibility of the toilet from the bed is possible.",null,null,null,null,null,null,null,null,0,"",""]
[null,"12.Contrast fittings and fixtures with background",null,null,null,null,null,null,null,null,0,"",""]
[null,"13.Use contrasting materials indoors for visibility",null,null,null,null,null,null,null,null,0,"",""]
[null,"14.Use contrasting materials outdoors for visibility",null,null,null,null,null,null,null,null,0,"",""]
[null,"15.Use olfactory cues for orientation",null,null,null,null,null,null,null,null,0,"",""]
[null,"16.Use tactile cues for orientation",null,null,null,null,null,null,null,null,0,"",""]
[null,"17.Use auditory cues for orientation",null,null,null,null,null,null,null,null,0,"",""]
[null,"18.Provide fresh air",null,null,null,null,null,null,null,null,0,"",""]
[null,"19.Maintain a comfortable temperature",null,null,null,null,null,null,null,null,0,"",""]
[null,"20.Ensure appropriate levels of illumination",null,null,null,null,null,null,null,null,0,"",""]
["6.       Promote movement, engagement, and meaningfulness.",null,null,{"$f":"SUM(D78:D82)","v":0},{"$f":"COUNTA(E78:E82)","v":0},{"$f":"SUM(F78:F82)","v":0},{"$f":"COUNTA(G78:G82)","v":0},{"$f":"SUM(H78:H82)","v":0},{"$f":"COUNTA(I78:I82)","v":0},null,{"$f":"E77+G77+I77","v":0},{"$f":"_xlfn.IFS(B14=3,AVERAGE(D77,F77,H77),B14=2,AVERAGE(D77,F77),B14=1,AVERAGE(D77))","v":{"$error":"#N/A"}},{"$f":"_xlfn.IFS(B14=1,(SUM(D78:D82)+2*K77)/10,B14=2,(SUM(D78:D82)+SUM(F78:F82)+2*K77)/20,B14=3,(SUM(D78:D82)+SUM(F78:F82)+SUM(H78:H82)+2*K77)/30)","v":{"$error":"#N/A"}}]
[null,"1.Provide easily identifiable pathways",null,null,null,null,null,null,null,null,{"$f":"COUNTA(E78,G78,I78)","v":0},{"$f":"IFERROR(AVERAGE(D78,F78,H78),\"\")","v":""},{"$f":"IFERROR(L78/2,\"\")","v":""}]
[null,"2.Provide destinations along the pathways",null,null,null,null,null,null,null,null,0,{"$f":"IFERROR(AVERAGE(D79,F79,H79),\"\")","v":""},{"$f":"IFERROR(L79/2,\"\")","v":""}]
[null,"3.Provide sheltered seating",null,null,null,null,null,null,null,null,0,"",""]
[null,"4.Provide passive engagement opportunities ",null,null,null,null,null,null,null,null,0,"",""]
[null,"5.Provide places for conversation",null,null,null,null,null,null,null,null,0,"",""]
["7.       Afford people opportunities to enjoy contact with nature.",null,null,{"$f":"SUM(D84:D88)","v":0},{"$f":"COUNTA(E84:E88)","v":0},{"$f":"SUM(F84:F88)","v":0},{"$f":"COUNTA(G84:G88)","v":0},{"$f":"SUM(H84:H88)","v":0},{"$f":"COUNTA(I84:I88)","v":0},null,{"$f":"E83+G83+I83","v":0},{"$f":"_xlfn.IFS(B14=3,AVERAGE(D83,F83,H83),B14=2,AVERAGE(D83,F83),B14=1,AVERAGE(D83))","v":{"$error":"#N/A"}},{"$f":"_xlfn.IFS(B14=1,(SUM(D84:D88)+2*K83)/10,B14=2,(SUM(D84:D88)+SUM(F84:F88)+2*K83)/20,B14=3,(SUM(D84:D88)+SUM(F84:F88)+SUM(H84:H88)+2*K83)/30)","v":{"$error":"#N/A"}}]
[null,"1.Provide access to nature when inside",null,null,null,null,null,null,null,null,{"$f":"COUNTA(E84,G84,I84)","v":0},{"$f":"IFERROR(AVERAGE(D84,F84,H84),\"\")","v":""},{"$f":"IFERROR(L84/2,\"\")","v":""}]
[null,"2.Provide views to nature from internal spaces",null,null,null,null,null,null,null,null,0,{"$f":"IFERROR(AVERAGE(D85,F85,H85),\"\")","v":""},{"$f":"IFERROR(L85/2,\"\")","v":""}]
[null,"3.Provide access to outdoor spaces",null,null,null,null,null,null,null,null,0,"",""]
[null,"4.Provide variety in the outdoor spaces.",null,null,null,null,null,null,null,null,0,"",""]
[null,"5.Provide access to nature when outside",null,null,null,null,null,null,null,null,0,"",""]
["8.       Design all components of the environment to be as familiar as possible.",null,null,{"$f":"SUM(D90:D94)","v":0},{"$f":"COUNTA(E90:E94)","v":0},{"$f":"SUM(F90:F94)","v":0},{"$f":"COUNTA(G90:G94)","v":0},{"$f":"SUM(H90:H94)","v":0},{"$f":"COUNTA(I90:I94)","v":0},null,{"$f":"E89+G89+I89","v":0},{"$f":"_xlfn.IFS(B14=3,AVERAGE(D89,F89,H89),B14=2,AVERAGE(D89,F89),B14=1,AVERAGE(D89))","v":{"$error":"#N/A"}},{"$f":"_xlfn.IFS(B14=1,(SUM(D90:D94)+2*K89)/10,B14=2,(SUM(D90:D94)+SUM(F90:F94)+2*K89)/20,B14=3,(SUM(D90:D94)+SUM(F90:F94)+SUM(H90:H94)+2*K89)/30)","v":{"$error":"#N/A"}}]
[null,"1.Provide furniture of a familiar design in common areas.",null,null,null,null,null,null,null,null,{"$f":"COUNTA(E90,G90,I90)","v":0},{"$f":"IFERROR(AVERAGE(D90,F90,H90),\"\")","v":""},{"$f":"IFERROR(L90/2,\"\")","v":""}]
[null,"2.Provide furniture of a familiar design in bedrooms",null,null,null,null,null,null,null,null,0,{"$f":"IFERROR(AVERAGE(D91,F91,H91),\"\")","v":""},{"$f":"IFERROR(L91/2,\"\")","v":""}]
[null,"3.Provide opportunities for residents to personalize bedrooms",null,null,null,null,null,null,null,null,0,"",""]
[null,"4.Facilitate use of personal furniture in bedrooms",null,null,null,null,null,null,null,null,0,"",""]
[null,"5.Provide familiar decorative elements",null,null,null,null,null,null,null,null,0,"",""]
["9.       Afford people opportunities to choose to be alone or with various size groups of people.",null,null,{"$f":"SUM(D96:D100)","v":0},{"$f":"SUM(E96:E100)","v":0},{"$f":"COUNTA(F96:F100)","v":0},{"$f":"SUM(G96:G100)","v":0},{"$f":"COUNTA(H96:H100)","v":0},{"$f":"SUM(I96:I100)","v":0},null,{"$f":"E95+G95+I95","v":0},{"$f":"_xlfn.IFS(B14=3,AVERAGE(D95,F95,H95),B14=2,AVERAGE(D95,F95),B14=1,AVERAGE(D95))","v":{"$error":"#N/A"}},{"$f":"_xlfn.IFS(B14=1,(SUM(D96:D100)+2*K95)/10,B14=2,(SUM(D96:D100)+SUM(F96:F100)+2*K95)/20,B14=3,(SUM(D96:D100)+SUM(F96:F100)+SUM(H96:H100)+2*K95)/30)","v":{"$error":"#N/A"}}]
[null,"1.Provide small group gathering areas",null,null,null,null,null,null,null,null,{"$f":"COUNTA(E96,G96,I96)","v":0},{"$f":"IFERROR(AVERAGE(D96,F96,H96),\"\")","v":""},{"$f":"IFERROR(L96/2,\"\")","v":""}]
[null,"2.Provide private or quiet spaces",null,null,null,null,null,null,null,null,0,{"$f":"IFERROR(AVERAGE(D97,F97,H97),\"\")","v":""},{"$f":"IFERROR(L97/2,\"\")","v":""}]
[null,"3.Ensure variety in design and decor",null,null,null,null,null,null,null,null,0,"",""]
[null,"4.Provide the option of dining alone",null,null,null,null,null,null,null,null,0,"",""]
[null,"5.Provide private spaces in outdoor areas",null,null,null,null,null,null,null,null,0,"",""]
["10.       Provide easy access and connection to and from local communities, families, and friends.",null,null,{"$f":"SUM(D102:D106)","v":0},{"$f":"SUM(E102:E106)","v":0},{"$f":"COUNTA(F102:F106)","v":0},{"$f":"SUM(G102:G106)","v":0},{"$f":"COUNTA(H102:H106)","v":0},{"$f":"SUM(I102:I106)","v":0},null,{"$f":"E101+G101+I101","v":0},{"$f":"_xlfn.IFS(B14=3,AVERAGE(D101,F101,H101),B14=2,AVERAGE(D101,F101),B14=1,AVERAGE(D101))","v":{"$error":"#N/A"}},{"$f":"_xlfn.IFS(B14=1,(SUM(D102:D106)+2*K101)/10,B14=2,(SUM(D102:D106)+SUM(F102:F106)+2*K101)/20,B14=3,(SUM(D102:D106)+SUM(F102:F106)+SUM(H102:H106)+2*K101)/30)","v":{"$error":"#N/A"}}]
[null,"1.Provide easy access to community-engaging spaces",null,null,null,null,null,null,null,null,{"$f":"COUNTA(E102,G102,I102)","v":0},{"$f":"IFERROR(AVERAGE(D102,F102,H102),\"\")","v":""},{"$f":"IFERROR(L102/2,\"\")","v":""}]
[null,"2.Support intergenerational engagement",null,null,null,null,null,null,null,null,0,{"$f":"IFERROR(AVERAGE(D103,F103,H103),\"\")","v":""},{"$f":"IFERROR(L103/2,\"\")","v":""}]
[null,"3.Provide settings for family meals and celebrations.",null,null,null,null,null,null,null,null,0,"",""]
[null,"4.Provide relaxation space for families and friends",null,null,null,null,null,null,null,null,0,"",""]
[null,"5.Support community integration and accessibility",null,null,null,null,null,null,null,null,0,"",""]
[]
[]
[]
[]
[]
[]
[null,null,"Sub-scale Average % score"]
[null,{"$f":"A17","v":"1.        Begin each project by developing a vision for a dignified way of life for people living with dementia."},{"$f":"M17:M17","v":{"$error":"#N/A"}}]
[null,{"$f":"A23","v":"2.       Where safety measures are agreed to be appropriate, design them to be as unobtrusive as possible."},{"$f":"M23","v":{"$error":"#N/A"}}]
[null,{"$f":"A34","v":"3.        Design the environment to reflect a human scale."},{"$f":"M34:M34","v":{"$error":"#N/A"}}]
[null,{"$f":"A45","v":"4.       Plan the environment to make it easy for people to see and move where they want to go."},{"$f":"M45:M45","v":{"$error":"#N/A"}}]
[null,{"$f":"_Hlk149570779","v":"5.        Optimise stimulation."},{"$f":"M56:M56","v":{"$error":"#N/A"}}]
[null,{"$f":"A77","v":"6.       Promote movement, engagement, and meaningfulness."},{"$f":"M77:M77","v":{"$error":"#N/A"}}]
[null,{"$f":"A83","v":"7.       Afford people opportunities to enjoy contact with nature."},{"$f":"M83:M83","v":{"$error":"#N/A"}}]
[null,{"$f":"A89","v":"8.       Design all components of the environment to be as familiar as possible."},{"$f":"M89:M89","v":{"$error":"#N/A"}}]
[null,{"$f":"A95","v":"9.       Afford people opportunities to choose to be alone or with various size groups of people."},{"$f":"M95:M95","v":{"$error":"#N/A"}}]
[null,{"$f":"A101","v":"10.       Provide easy access and connection to and from local communities, families, and friends."},{"$f":"M101:M101","v":{"$error":"#N/A"}}]
[]
[]
[null,"Number of people living in the unit.",{"$f":"D8","v":0}]
[null,"Usual number of people in common area.",{"$f":"D9","v":0}]
[null,"Maximum number of people in one bedroom",{"$f":"D10","v":0}]
[]
["Design Dignity Dementia Environment Assessment Tool scoring spreadsheet. Beta 1.2 Richard Fleming & Kirsty Bennet. © 2025 This work is openly licensed via CC BY-SA 4.0"]